Cogmind - Beta 9.6 @@@ ROGUE MODE // 2020.07.31 @ 22:28:19 Player: Alexbot Result: Destroyed by G-34 Mercenary with Small Laser Performance ------------- Evolutions (1) 500 Regions Visited (3) 600 Robots Destroyed (1) 5 Value Destroyed (36) 36 Prototype IDs (0) 0 Alien Tech Used (0) 0 Bonus (200) 200 TOTAL SCORE: 1341 Bonus ------- Pacifist 200 Cogmind --------- Core Integrity 0/400 Matter 300/300 Energy 100/100 System Corruption 2% Temperature Cool (140) Movement Core (50) Location -9/Storage Parts ------- > --- POWER (2) -------- (None) > --- PROPULSION (3) --- (None) > --- UTILITY (2) ------ (None) > --- WEAPON (2) ------- (None) > --- INVENTORY (4) ---- Mini Grenade Launcher Axe Axe Peak State ------------ > --- POWER ------------ Ion Engine > --- PROPULSION ------- Aluminum Leg Aluminum Leg > --- UTILITY ---------- (None) > --- WEAPON ----------- Assault Rifle Light Assault Rifle > --- INVENTORY -------- Light Treads Compact Wheel Compact Wheel Light Assault Rifle [Rating: 5] Favorites ----------- Power Ion Engine Engine Ion Engine Propulsion Aluminum Leg Leg Aluminum Leg Utility None Weapon Axe Ballistic Gun Light Assault Rifle Slashing Weapon Axe Build | -11 -10 -9 -9 ------- Run | Scr Mat Mat Sto Slots Evolved 2 | . . 2 . Power 1 | . . 1 . Propulsion 1 | . . 1 . Utility . | . . . . Weapon . | . . . . Parts Attached 1 | . . 1 . Power . | . . . . Engine . | . . . . Core . | . . . . Reactor . | . . . . Propulsion . | . . . . Treads . | . . . . Leg . | . . . . Wheel . | . . . . Hover . | . . . . Flight . | . . . . Utility . | . . . . Device . | . . . . Storage . | . . . . Processor . | . . . . Hackware . | . . . . Protection . | . . . . Artifact . | . . . . Weapon 1 | . . 1 . Energy Gun . | . . . . Energy Cannon . | . . . . Ballistic Gun . | . . . . Ballistic Cannon . | . . . . Launcher . | . . . . Special Weapon . | . . . . Impact Weapon . | . . . . Slashing Weapon 1 | . . 1 . Piercing Weapon . | . . . . Special Melee Weapon . | . . . . Unidentified Prototypes . | . . . . Parts Lost 1 | . . . 1 Power . | . . . . Propulsion . | . . . . Utility . | . . . . Weapon 1 | . . . 1 Highest Loss Streak 1 | . . . 1 Average Slot Usage (%) 17 | . 28 19 11 Ballistic Gun 10 | . 28 16 . Slashing Weapon 6 | . . 2 11 Naked Turns 3 | . . . 3 Heaviest Build 12 | 12 3 3 3 Greatest Support 20 | 20 3 3 3 Greatest Overweight (x) . | . . . . Average Overweight (x) . | . . . . Largest Inventory Capacity 4 | . 4 4 4 Average Capacity 4 | . 4 4 4 Most Carried 4 | . 4 3 3 Average Carried 1 | . 1 1 2 Final Capacity 6 | 6 4 4 4 Final Carried 6 | 6 1 2 3 Class Distribution -------------------- 100% | Mutant Dominant Class ---------------- Mutant | -10/Materials Mutant | -9/Materials Mutant | -9/Storage Resources | -11 -10 -9 -9 ----------- Run | Scr Mat Mat Sto Matter Collected 213 | 200 . . 13 Remotely . | . . . . Salvage Created 22 | . . . 22 Parts 3 | . . . 3 Haulers Intercepted . | . . . . Recyclers Shooed . | . . . . Parts Field Recycled . | . . . . Retrieved Matter . | . . . . Parts Self-Destructed . | . . . . Prevented . | . . . . Kills | -11 -10 -9 -9 ------- Run | Scr Mat Mat Sto Combat Hostiles Destroyed . | . . . . Classes Destroyed 1 | . . . 1 Watcher 1 | . . . 1 Best Kill Streak 1 | . . . 1 Combat Bots Only . | . . . . Max Kills in Single Turn 1 | . . . 1 Gunslinging . | . . . . Exploded . | . . . . Melee . | . . . . Uniques/NPCs Destroyed . | . . . . Combat | -11 -10 -9 -9 -------- Run | Scr Mat Mat Sto Damage Taken 556 | . 103 68 385 Core 423 | . 21 56 346 Absorbed by Shields . | . . . . Core Remaining (%) 95 | 100 91 . . Volleys Fired 2 | . 2 . . Largest 2 | . 2 . . Hottest 40 | . 40 . . Shots Fired 4 | . 4 . . Gun 4 | . 4 . . Cannon . | . . . . Launcher . | . . . . Special . | . . . . Kinetic 4 | . 4 . . Thermal . | . . . . Explosive . | . . . . Electromagnetic . | . . . . Robot Hit Streak 1 | . 1 . . Robot Miss Streak 2 | . 2 . . Penetration Max . | . . . . Secondary Targets . | . . . . Shots Hit Robots 3 | . 1 . 2 Core Hits 2 | . . . 2 Critical Hits . | . . . . Critical Kills . | . . . . Critical Parts Destroyed . | . . . . Melee Attacks 4 | . . . 4 Impact . | . . . . Slashing 4 | . . . 4 Piercing . | . . . . Sneak Attacks . | . . . . Combat Hostiles . | . . . . Follow-up Attacks . | . . . . Damage Inflicted 102 | . 10 10 82 Guns 10 | . 10 . . Cannons . | . . . . Explosions . | . . . . Melee 81 | . . . 81 Ramming 11 | . . 10 1 Kinetic 10 | . 10 . . Thermal . | . . . . Explosive . | . . . . Electromagnetic . | . . . . Impact . | . . . . Slashing 81 | . . . 81 Piercing . | . . . . Highest Corruption 2 | . . . 2 Average Corruption 2 | . . . 2 Corruption Purged . | . . . . Effects 1 | . . . 1 Heat Flow Errors 1 | . . . 1 Overload Shots . | . . . . Overflow Damage . | . . . . Projectiles . | . . . . Explosions . | . . . . Melee . | . . . . Knockbacks . | . . . . Impact . | . . . . Kinetic . | . . . . Secondary . | . . . . Self-Inflicted Damage 5 | . . 5 . Shots . | . . . . Rammed 2 | . . 1 1 Targets Rammed 2 | . . 1 1 Kicked . | . . . . Crushed . | . . . . Highest Temperature . | . . . . Average Temperature . | . . . . Received Heat Transfer 228 | . 54 9 165 Siege Activations . | . . . . Robots Corrupted . | . . . . Combat Hostiles . | . . . . Parts Fried . | . . . . Impact Corruptions . | . . . . Robots Melted . | . . . . Combat Hostiles . | . . . . Parts Melted . | . . . . Heat Transferred . | . . . . Parts Sabotaged . | . . . . Parts Stolen . | . . . . Parts Stripped . | . . . . Power Chain Reactions . | . . . . Missiles Intercepted . | . . . . Alert | -11 -10 -9 -9 ------- Run | Scr Mat Mat Sto Peak Influence 123 | . 30 27 123 Average Influence 40 | . 12 12 71 Maximum Alert Level . | . . . . Low Security (%) 100 | . 100 100 100 Level 1 . | . . . . Level 2 . | . . . . Level 3 . | . . . . Level 4 . | . . . . Level 5 . | . . . . High Security . | . . . . Max Security . | . . . . Squads Dispatched 3 | . 1 . 2 Investigation . | . . . . Extermination . | . . . . Reinforcement 3 | . 1 . 2 Assault . | . . . . Garrison . | . . . . Intercept . | . . . . Construction Impeded . | . . . . Haulers Reinforced . | . . . . Stealth | -11 -10 -9 -9 --------- Run | Scr Mat Mat Sto Distress Signals 1 | . 1 . . Communications Jammed . | . . . . Distress Signals . | . . . . Times Spotted 27 | . 6 6 15 Peak Tracking Total 16 | . 5 6 16 Tactical Retreats 1 | . . . 1 Traps | -11 -10 -9 -9 ------- Run | Scr Mat Mat Sto Traps Triggered 1 | . . . 1 Indirectly . | . . . . Trap Hack Attempts . | . . . . Triggered . | . . . . Disarmed . | . . . . Reprogrammed . | . . . . Reused . | . . . . Traps Extracted . | . . . . Installed . | . . . . Triggered . | . . . . Machines | -11 -10 -9 -9 ---------- Run | Scr Mat Mat Sto Machines Disabled 2 | . . . 2 Max in Single Turn 1 | . . . 1 Machines Sabotaged . | . . . . Garrisons Compromised . | . . . . Overloaded Fab Kills . | . . . . Fab Network Shutdowns . | . . . . Hacking | -11 -10 -9 -9 --------- Run | Scr Mat Mat Sto Machines Accessed . | . . . . Terminals . | . . . . Fabricators . | . . . . Repair Stations . | . . . . Recycling Units . | . . . . Scanalyzers . | . . . . Garrison Access . | . . . . Total Hacks . | . . . . Successful . | . . . . Failed . | . . . . Catastrophic . | . . . . Database Lockouts . | . . . . Manual . | . . . . Terminals . | . . . . Fabricators . | . . . . Repair Stations . | . . . . Recycling Units . | . . . . Scanalyzers . | . . . . Garrison Access . | . . . . Terminal Hacks . | . . . . Fabricator Hacks . | . . . . Repair Station Hacks . | . . . . Recycling Unit Hacks . | . . . . Scanalyzer . | . . . . Garrison Access Hacks . | . . . . Unauthorized Hacks . | . . . . Terminals . | . . . . Fabricators . | . . . . Repair Stations . | . . . . Recycling Units . | . . . . Scanalyzers . | . . . . Garrison Access . | . . . . Data Cores Recovered . | . . . . Used . | . . . . Hacking Detections . | . . . . Full Trace Events . | . . . . Feedback Events . | . . . . Feedback Blocked . | . . . . Robot Schematics Acquired . | . . . . Robots Built . | . . . . Matter . | . . . . Time . | . . . . Total Robot Build Rating . | . . . . Part Schematics Acquired . | . . . . Parts Built . | . . . . Matter . | . . . . Time . | . . . . Total Part Build Rating . | . . . . Parts Repaired . | . . . . Time . | . . . . Parts Recycled . | . . . . Recycled Matter . | . . . . Retrieved Matter . | . . . . Retrieved Components . | . . . . Parts Scanalyzed . | . . . . Part Schematics Acquired . | . . . . Parts Damaged . | . . . . Bothacking | -11 -10 -9 -9 ------------ Run | Scr Mat Mat Sto Used RIF Installer . | . . . . Robots Hacked . | . . . . Non-combat . | . . . . Combat . | . . . . Robot Hacks Applied . | . . . . Relay Couplers Released . | . . . . Robots Rewired . | . . . . Allies Hacked . | . . . . Hacks Repelled . | . . . . Allies | -11 -10 -9 -9 -------- Run | Scr Mat Mat Sto Total Allies . | . . . . Largest Group . | . . . . Highest-Rated Group . | . . . . Highest-Rated Ally . | . . . . Total Orders . | . . . . Ally Attacks . | . . . . Total Damage . | . . . . Kills . | . . . . Allies Corrupted . | . . . . Allies Melted . | . . . . Intel | -11 -10 -9 -9 ------- Run | Scr Mat Mat Sto Robot Analysis Total . | . . . . Derelict Logs Recovered . | . . . . Drone Launches . | . . . . Drone Recoveries . | . . . . Exploration | -11 -10 -9 -9 ------------- Run | Scr Mat Mat Sto Turns Passed 147 | . 38 39 70 Spaces Moved 237 | 1 58 64 114 Core 236 | . 58 64 114 Treads . | . . . . Legs 1 | 1 . . . Wheels . | . . . . Hover . | . . . . Flight . | . . . . Fastest Speed 50 | 120 50 50 50 Average Speed 50 | 120 50 50 50 Slowest Speed 120 | 120 50 50 50 Overloaded Moves . | . . . . Propulsion Burnouts . | . . . . Robots Hopped . | . . . . Cave-ins Triggered . | . . . . Exploration Rate (%) 15 | 2 15 9 37 Regions Visited 3 Branch Regions 1 Pre-discovered Areas . | . . . . Known Exits Taken . | . . . . Unknown Exits Taken 3 | 1 1 1 . Scrap Searched . | . . . . Spaces Dug . | . . . . Terrain Destroyed . | . . . . Melee . | . . . . Projectile . | . . . . AOE . | . . . . Actions | -11 -10 -9 -9 --------- Run | Scr Mat Mat Sto Total 258 | . 66 72 120 Wait . | . . . . Move 235 | . 57 64 114 Hop . | . . . . Pick Up 3 | . . 2 1 Fast Attach 1 | . . 1 . Attach . | . . . . Detach 2 | . . 2 . Swap . | . . . . Drop 10 | . 7 3 . Fire 2 | . 2 . . Melee 4 | . . . 4 Ram 1 | . . . 1 Kick . | . . . . Crush . | . . . . Escape Stasis . | . . . . Rewire . | . . . . Trap . | . . . . Miscellaneous . | . . . . Route ------- -11/Scrapyard -10/Materials -9/Materials -9/Storage History --------- Turn | Location | Event 1 | -11/Scrapyard | Discovered new exit (range 0) 1 | -11/Scrapyard | Entered Materials 37 | -10/Materials | Discovered new exit (range 6) 39 | -10/Materials | Entered another Materials area 39 | -9/Materials | Evolved 2 slots: Power x1, Propulsion x1 73 | -9/Materials | Discovered new exit (range 10) 78 | -9/Materials | Entered Storage 136 | -9/Storage | Core integrity fell below 50% 145 | -9/Storage | Core integrity fell below 20% 148 | -9/Storage | Destroyed by G-34 Mercenary with Small Laser Last Messages --------------- GOAL=ESCAPE 00082_ Storage Shell breached. 00085_ Triggered Shock Trap. 00085_ The floor emits a surge of raw power. 00085_ System corrupted (+2). 00095_ Storage Shell breached. 00099_ Acquired Mni. Grenade Launcher. 00100_ Acquired 13 matter. 00114_ K-01 Serf collects debris. 00116_ W-16 Scout destroyed. 00118_ K-01 Serf collects debris. 00121_ R-06 Scavenger collects Hover Unit. 00124_ K-01 Serf collects debris. 00127_ ALERT: Hostiles spotted, dispatching reinforcements to Terminal S012. 00132_ ALERT: Hostiles spotted, dispatching reinforcements to Terminal S010. 00145_ Axe destroyed. 00148_ System corrupted: Heat flow error (+128). 00148_ Slammed into G-34 Mercenary. Map ----- +----------------------------------------------------+ | | | | | | | | | | | | | | | | | | | | | | | | | | | ?????????????????????????????????????????????????? | | ?????????????????????????#####???????????????????? | | ????????????????????????? ????????????????????? | | ????????????????????????# ????????????????????? | | ????????????????????????# ????????????????????? | | ????????????????????##??# u#????????????????????? | | ????????????????????? ?# #????????????????????? | | ?????????????????????? ?# #????????????????????? | | ?????????????????????? # #????????????????????? | | ??????????????????????? # #????????????????????? | | ????????????????????????/a #????????????????????? | | ????????????????????????#ggg#????????????????????? | | ????????????????????????#@ #????????????????????? | | ????????????????????????# #????????????????????? | | ????????????????????????# #????????????????????? | | ????????????????????????# #????????????????????? | | ????????????????????????# #????????????????????? | | ????????????????????????# #######????###?####### | | ????????????????????????# # ######T### # | | ????????????????????????#a # # | | ????????????????????????# gg# # | | ????????????????????????# # # | | ????????????????????????# s# ########## # | | ????????????????????????# s ##????????## ## | | ????????????????????????# #??????????# #? | | ????????????????????????#+#### #??????????# #? | | ?????????????????????????????# #????" ????# #? | | ?????????????????????????????+ #????" """ # #? | | ?????????????????????????????# #????" """ " #? | | ?????????????????????????????# #????" """ # #? | | ?????????????????????????????# #???? # #? | | ?????????????????????????????# #??? ?# #? | | ?????????????????????????????# #??"Y"####?# #? | | ?????????????????????????????#####???"??????# #? | | ??????????????????????????????????????####### #? | | ??????????????????????????????? / #? | | ??????????????????????????????????????####### #? | +----------------------------------------------------+ Best States ------------- Heat Dissipation 28 Energy Generation 5 Energy Capacity 100 Matter Stores 300 Matter Capacity 300 Sight Range 16 Terrain Scan Density 10 Evasion (%) 50 Item Schematics ----------------- None Robot Schematics ------------------ None Fabricated ------------ Nothing Alien Tech Used ----------------- None Achievements -------------- None Challenges ------------ None Game ------ Seed HoverSystemManipulator Manual? 0 Play Time 00:02:37 Cumulative 830.6 hours Start 2020.07.31 @ 22:26:29 End 2020.07.31 @ 22:28:19 Sessions 1 Manual Loads 0 Difficulty Rogue Special Mode None Game No. 253 Rogue 253 Adventurer 0 Explorer 0 Win Type - Total 45 Types 33/1/3/3/3/1/1 Lore% 97 Gallery% 99 Achievement% 95 Wizard Run 0 Options --------- ASCII 0 Keyboard 1 Movement Numpad Keybinds 0 Fullscreen 1 Font 18/SmallcapsGlow Map View 76x50 Tactical HUD 1 Map Filters NONE Filters NONE Steam 1 RUN: 0a531f44-c23d-4c90-8ecf-a668362f1f2e